fUST/lending_fUST_20250927
["ID","MTS","AMOUNT","RATE_DAILY","PERIOD"]
[387840930,1758916059944,-160.0,0.0003,10]
[387840931,1758916059964,-1131.18,0.0003,2]
[387840932,1758916059985,-1000.0,0.00030136,120]
[387840933,1758916060007,-587.0,0.00030182,2]
[387840934,1758916060026,-155.0,0.00030183,2]
[387840935,1758916060046,-920.0,0.00030273,120]
[387840936,1758916060066,-26.06451884,0.000304,7]
[387840937,1758916061554,-1641.253,0.00023841,5]
[387840938,1758916064447,527.76704277,0.000199,2]
[387840939,1758916065138,527.76704262,0.00022844,2]
[387840940,1758916071685,-527.76704262,0.00024316,2]
[387840941,1758916087853,160.0,0.00025205,2]
[387840944,1758916197953,193.562875,0.00023474,2]
[387840970,1758916232589,-300.0,0.00025887,2]
[387840971,1758916232600,-300.0,0.00025887,2]
[387840972,1758916232609,-215.0,0.00025887,2]
[387840973,1758916232619,-811.0,0.00025887,2]
[387840974,1758916232628,-254.0,0.00025887,2]
[387840975,1758916232641,-160.0,0.00025887,2]
[387840976,1758916232651,-6267.9631192,0.00025888,2]
[387840977,1758916232661,-15369.87957396,0.00026868,2]
[387840978,1758916232682,-10587.546708,0.00026868,2]
[387840979,1758916232693,-27403.35622171,0.00026868,2]
[387840980,1758916232703,-193.562875,0.00026899,2]
[387840981,1758916232712,-193.4689111,0.00027782,2]
[387840982,1758916232721,-160.0,0.0002817,2]
[387840983,1758916232730,-160.0,0.00028187,2]
[387840984,1758916232739,-160.0,0.00028187,2]
[387840985,1758916232748,-417.15472785,0.00028187,2]
[387840986,1758916232757,-160.0,0.00028187,2]
[387840987,1758916232767,-303.7086851,0.00029098,2]
[387840988,1758916232776,-151.0,0.0002944,7]
[387840989,1758916232785,-151.0,0.0002944,7]
[387840990,1758916232794,-177.683661,0.0002944,7]
[387840991,1758916232803,-666.0,0.00029909,2]
[387840992,1758916232812,-160.0,0.0003,10]
[387840993,1758916232821,-193.562875,0.00030323,60]
[387840994,1758916232831,-500.0,0.00030472,5]
[387840995,1758916232840,-500.0,0.00030472,5]
[387840996,1758916232850,-558.0,0.00030523,7]
[387840997,1758916232859,-1000.0,0.0003102,5]
[387840998,1758916232869,-579.0,0.00031023,2]
[387840999,1758916232878,-558.0,0.00031206,7]
[387841000,1758916232889,-579.0,0.00031263,2]
[387841001,1758916232899,-218.01,0.000313,2]
[387841002,1758916232908,-568.0,0.00031334,2]
[387841003,1758916232918,-151.49421473,0.00031338,2]
[387841004,1758916232928,-168.3,0.00031667,7]
[387841005,1758916232937,-568.0,0.00031857,2]
[387841006,1758916232947,-758.55344674,0.00031881,28]
[387841007,1758916232957,-169.62692056,0.00032,120]
[387841008,1758916232967,-217.99592757,0.00032,120]
[387841009,1758916232976,-160.0,0.00032,120]
[387841010,1758916232985,-650.07532387,0.00032,30]
[387841011,1758916232995,-181.516896,0.00032028,2]
[387841012,1758916233005,-150.0,0.00032041,2]
[387841013,1758916233015,-160.0,0.00032041,20]
[387841014,1758916233025,-558.0,0.00032095,2]
[387841015,1758916233035,-579.0,0.00032098,7]
[387841016,1758916233045,-558.0,0.00032167,2]
[387841017,1758916233055,-558.0,0.00032187,2]
[387841018,1758916233065,-568.0,0.00032221,2]
[387841019,1758916233186,-500.0,0.00032247,2]
[387841020,1758916233197,-500.0,0.00032247,2]
[387841021,1758916233207,-500.0,0.00032247,2]
[387841022,1758916233217,-500.0,0.00032247,2]
[387841023,1758916233227,-500.0,0.00032247,2]
[387841024,1758916233236,-500.0,0.00032247,2]
[387841025,1758916233245,-500.0,0.00032247,2]
[387841026,1758916233255,-500.0,0.00032247,2]
[387841027,1758916233265,-500.0,0.00032247,2]
[387841028,1758916233274,-277.93599693,0.00032247,2]
[387841219,1758916238442,-222.06400307,0.00032247,2]
[387841221,1758916238452,-500.0,0.00032247,2]
[387841235,1758916238572,-289.61632471,0.00032247,2]
[387841237,1758916238584,-210.38367529,0.00032247,2]
[387841239,1758916238598,-162.42233927,0.00032265,2]
[387841240,1758916238607,-270.91644152,0.00032265,2]
[387841243,1758916238616,-500.0,0.00032265,2]
[387841245,1758916238625,-500.0,0.00032265,2]
[387841247,1758916238635,-500.0,0.00032265,2]
[387841249,1758916238646,-563.27062512,0.00032265,2]
[387841251,1758916238655,-500.0,0.00032265,2]
[387841253,1758916238666,-500.0,0.00032265,2]
[387841255,1758916238675,-500.0,0.00032265,2]
[387841257,1758916238684,-500.0,0.00032265,2]
[387841259,1758916238693,-500.0,0.00032265,2]
[387841261,1758916238703,-500.0,0.00032265,2]
[387841263,1758916238712,-500.0,0.00032265,2]
[387841265,1758916238721,-500.0,0.00032265,2]
[387841267,1758916238731,-500.0,0.00032265,2]
[387841269,1758916238740,-500.0,0.00032265,2]
[387841271,1758916238750,-500.0,0.00032265,2]
[387841273,1758916238760,-500.0,0.00032265,2]
[387841275,1758916238769,-500.0,0.00032265,2]
[387841277,1758916238778,-500.0,0.00032265,2]
[387841279,1758916238789,-244.28943758,0.00032265,2]
[387841281,1758916238799,-500.0,0.00032265,2]
[387841283,1758916238809,-500.0,0.00032265,2]
[387841285,1758916238819,-500.0,0.00032265,2]
[387841287,1758916238829,-9777.5381259,0.00032266,2]
[387841289,1758916238839,-169.62692056,0.000323,120]
[387841291,1758916238848,-568.0,0.00032315,7]
[387841293,1758916238858,-9250.81433748,0.0003234,2]
[387841295,1758916238867,-2538.48594678,0.0003234,2]
[387841297,1758916238876,-200.0,0.0003239,3]
[387841299,1758916238885,-801.09,0.0003243,10]
[387841301,1758916238896,-14059.6747031,0.0003243,2]
[387841303,1758916238905,-8124.70056533,0.0003244,2]
[387841346,1758916240435,-8878.718865,0.0003244,2]
[387841424,1758916244174,-90398.550501,0.0003244,2]
[387841432,1758916246482,-0.01590674,0.00028187,2]
[387841435,1758916247731,-233.69811403,0.00028187,2]
[387841436,1758916247741,-14185.72973997,0.0003244,2]
[387841438,1758916249934,-17993.95213,0.0003244,2]
[387841439,1758916249999,-113.25645619,0.0003244,2]
[387841440,1758916250372,-300.21621275,0.00032041,2]
[387841441,1758916250383,-86360.42862047,0.0003244,2]
[387841442,1758916250566,-2478.209882,0.0003244,2]
[387841443,1758916251095,-1211.87659988,0.0003244,2]
[387841444,1758916251326,457.39810372,0.000199,2]
[387841445,1758916251355,457.3981036,0.00021372,2]
[387841446,1758916251528,457.3981036,0.00024316,2]
[387841447,1758916251576,457.3981036,0.00022844,2]
[387842416,1758916357027,1376.556,0.00023543,2]
[387842417,1758916413660,160.0,0.00025205,2]
[387842418,1758916419803,202.69256542,0.000199,2]
[387842419,1758916420110,202.69256542,0.00022949,2]
[387842421,1758916433656,417.15472785,0.00025205,2]
[387842422,1758916434492,417.15472785,0.00026,60]
[387842428,1758916458495,1668.6189114,0.00025205,2]
[387842429,1758916462681,802.04363038,0.00025205,2]
[387842435,1758916589569,335.32853718,0.000199,2]
[387842436,1758916589758,335.32853711,0.00024316,2]
[387842437,1758916589798,335.32853711,0.00021372,2]
[387842438,1758916590315,335.32853711,0.00022844,2]
[387842467,1758916725476,300.0,0.000228,2]
[387842468,1758916740440,160.0,0.00025205,2]
[387842470,1758916759647,329.12022496,0.000199,2]
[387842471,1758916759955,329.12022496,0.00022949,2]
[387842480,1758916778195,210.649,0.00024316,7]
[387842481,1758916839309,500.0,0.00024316,7]
[387842482,1758916845730,233.31458754,0.00024146,12]
[387842483,1758916848893,166.16281314,0.00025205,2]
[387842510,1758916928934,255.06920403,0.000199,2]
[387842511,1758916928968,255.06920379,0.00021372,2]
[387842517,1758916987124,191.0,0.00022712,8]
[387842525,1758917019922,413.504,0.00024316,7]
[387842539,1758917098646,379.47848998,0.000199,2]
[387842540,1758917098948,379.47848998,0.00022949,2]
[387842555,1758917267965,204.05536303,0.00021372,2]
[387842556,1758917268162,204.05536303,0.00022844,2]
[387842557,1758917268580,204.05536309,0.000199,2]
[387842558,1758917280295,410.21,0.00018182,2]
[387842559,1758917280364,410.21,0.00018182,2]
[387842563,1758917365941,160.0,0.00025205,2]
[387842574,1758917432501,-386.10076341,0.000253,2]
[387842575,1758917432510,-204.05536303,0.00025788,4]
[387842576,1758917432520,-747.4119274,0.00026058,2]
[387842577,1758917432530,-666.0,0.00026059,2]
[387842578,1758917432539,-193.217235,0.00026184,2]
[387842579,1758917432549,-579.0,0.00026986,2]
[387842580,1758917432558,-204.05536303,0.00027259,7]
[387842581,1758917432568,-956.53863689,0.00027322,2]
[387842582,1758917432577,-300.0,0.00027418,2]
[387842583,1758917432587,-1200.0,0.00027418,2]
[387842584,1758917432596,-500.0,0.00027419,2]
[387842585,1758917432606,-500.0,0.00027419,2]
[387842586,1758917432616,-500.0,0.00027419,2]
[387842587,1758917432625,-509.97554266,0.00027419,2]
[387842588,1758917432635,-500.0,0.00027419,2]
[387842589,1758917432645,-500.0,0.00027419,2]
[387842590,1758917432655,-500.0,0.00027419,2]
[387842591,1758917432664,-500.0,0.00027419,2]
[387842593,1758917432673,-500.0,0.00027419,2]
[387842594,1758917432683,-593.05820433,0.00027419,2]
[387842595,1758917432693,-500.0,0.00027419,2]
[387842596,1758917432706,-333.2350064,0.00027419,2]
[387842598,1758917432717,-500.0,0.00027419,2]
[387842600,1758917432727,-14000.52937486,0.00027419,2]
[387842602,1758917432739,-639.58423946,0.00027419,2]
[387842604,1758917432750,-1800.22766049,0.00027419,2]
[387842607,1758917432762,-3280.32493626,0.00027419,2]
[387842609,1758917432772,-1200.0,0.00027419,2]
[387842611,1758917432781,-500.0,0.0002742,2]
[387842613,1758917432791,-500.0,0.0002742,2]
[387842615,1758917432800,-500.0,0.0002742,2]
[387842617,1758917432810,-303.70763916,0.0002742,2]
[387842619,1758917432820,-500.0,0.0002742,2]
[387842621,1758917432830,-184.94163169,0.0002742,2]
[387842623,1758917432839,-500.0,0.0002742,2]
[387842625,1758917432849,-500.0,0.0002742,2]
[387842627,1758917432858,-500.0,0.0002742,2]
[387842629,1758917432868,-500.0,0.0002742,2]
[387842631,1758917432878,-500.0,0.0002742,2]
[387842633,1758917432888,-500.0,0.0002742,2]
[387842645,1758917433000,-500.0,0.0002742,2]
[387842647,1758917433012,-500.0,0.0002742,2]
[387842649,1758917433023,-500.0,0.0002742,2]
[387842651,1758917433034,-500.0,0.0002742,2]
[387842653,1758917433044,-500.0,0.0002742,2]
[387842655,1758917433055,-500.0,0.0002742,2]
[387842657,1758917433064,-558.67761049,0.0002742,2]
[387842659,1758917433074,-3976.412433,0.00027422,2]
[387842661,1758917433084,-500.0,0.00027473,5]
[387842663,1758917433093,-500.0,0.00027473,5]
[387842665,1758917433104,-568.0,0.00027563,2]
[387842668,1758917433114,-1000.0,0.00027599,30]
[387842669,1758917433123,-568.0,0.00027631,2]
[387842671,1758917433133,-579.0,0.00027759,2]
[387842673,1758917433142,-206.8072616,0.00027839,2]
[387842675,1758917433152,-480.19404396,0.0002801,2]
[387842678,1758917433165,-19.80595604,0.0002801,2]
[387842680,1758917433175,-558.0,0.0002801,2]
[387842682,1758917433185,-132.36784398,0.00028042,2]
[387842888,1758917437843,350.01042652,0.000199,2]
[387842891,1758917438405,350.01042652,0.00022949,2]
[387842892,1758917438528,-350.01042652,0.00025998,4]
[387842893,1758917438543,-425.63215602,0.00028042,2]
[387842894,1758917438558,-568.0,0.00028045,2]
[387842895,1758917438572,-160.0,0.00028216,2]
[387842898,1758917438587,-233.71402077,0.00028258,2]
[387842900,1758917438602,-160.0,0.00028258,2]
[387842903,1758917438616,-558.0,0.00028286,2]
[387842906,1758917438631,-500.0,0.00028413,2]
[387842909,1758917438646,-202.04,0.00028413,2]
[387842911,1758917438660,-202.04,0.00028413,2]
[387842913,1758917438675,-202.04,0.00028413,2]
[387842914,1758917438690,-202.04,0.00028413,2]
[387842915,1758917438705,-202.04,0.00028413,2]
[387842916,1758917438719,-202.04,0.00028413,2]
[387842917,1758917438734,-202.03,0.00028413,2]
[387842918,1758917438748,-167.44808106,0.00028497,2]
[387842919,1758917438763,-500.0,0.00028497,2]
[387842920,1758917438777,-500.0,0.00028497,2]
[387842921,1758917438791,-500.0,0.00028497,2]
[387842922,1758917438805,-500.0,0.00028497,2]
[387842923,1758917438814,-500.0,0.00028497,2]
[387842924,1758917438823,-539.93378715,0.00028497,2]
[387842925,1758917438832,-558.0,0.00028515,2]
[387842926,1758917438842,-1818.0,0.00028561,2]
[387842927,1758917438851,-558.0,0.00028668,2]
[387842928,1758917439038,-151.0,0.00028668,2]
[387842929,1758917439059,-558.0,0.00028845,2]
[387842930,1758917439069,-120.99152848,0.00029047,11]
[387842931,1758917439085,-229.01889804,0.00029047,11]
[387842932,1758917439095,-160.0,0.00029089,2]
[387842933,1758917439105,-160.0,0.00029089,2]
[387842934,1758917439115,-470.0,0.00029099,2]
[387842935,1758917439124,-222.20002976,0.00029206,7]
[387842936,1758917439145,-1595.79997024,0.00029206,7]
[387842937,1758917439154,-425.333,0.00029206,22]
[387842938,1758917439164,-184.34289491,0.00029467,2]
[387842939,1758917439176,-295.65710509,0.00029467,2]
[387842940,1758917439185,-63.53916711,0.00029508,2]
[387842946,1758917440458,-684.46437229,0.00029508,2]
[387842947,1758917440468,-1467.494966,0.0002952,2]
[387842948,1758917440477,-420.0,0.00029629,2]
[387842949,1758917440487,-470.0,0.00029899,2]
[387842950,1758917440496,-956.53863682,0.00030019,2]
[387842951,1758917440505,-473.0,0.00030055,2]
[387842952,1758917440515,-472.0,0.00030231,2]
[387842954,1758917440524,-470.0,0.00030249,2]
[387842956,1758917440532,-470.0,0.00030374,7]
[387842957,1758917440542,-470.0,0.00031116,2]
[387842958,1758917440551,-470.0,0.00031142,2]
[387842959,1758917440560,-472.0,0.00031171,7]
[387842960,1758917440570,-470.0,0.00031393,2]
[387842961,1758917440579,-470.0,0.00031439,2]
[387842962,1758917440588,-1275.34544662,0.00031466,2]
[387842963,1758917440598,-154.3,0.0003164,7]
[387842964,1758917440607,-472.0,0.00031688,2]
[387842965,1758917440616,-792.51935246,0.00031863,28]
[387842966,1758917440625,-151.25801289,0.00031956,2]
[387842967,1758917440635,-169.62692056,0.00032,120]
[387842968,1758917440644,-199.00000002,0.00032,120]
[387842969,1758917440654,-23.71048683,0.00032,60]
[387842970,1758917440668,-129.52592982,0.00032,60]
[387842971,1758917440677,-587.0,0.00032019,2]
[387842972,1758917440687,-160.0,0.00032023,20]
[387842973,1758917440696,-350.01042652,0.00032096,17]
[387842974,1758917440706,-169.62692056,0.000323,120]
[387842975,1758917440715,-1125.07953022,0.0003234,2]
[387842976,1758917440724,-2711.94583532,0.0003234,2]
[387842977,1758917440733,-2181.663648,0.00032417,2]
[387842978,1758917440743,-993.5962995,0.00032417,2]
[387842979,1758917440753,-3451.01106348,0.0003243,2]
[387842980,1758917440762,-206640.54034659,0.0003244,2]
[387842990,1758917443971,-160.0,0.00028258,2]
[387842991,1758917443981,-48466.42914933,0.0003244,2]
[387842992,1758917443992,-898.0,0.0003244,2]
[387842993,1758917444003,-14249.60714424,0.0003244,2]
[387842994,1758917444015,-500.0,0.00032473,5]
[387842995,1758917444024,-169.62692056,0.000326,120]
[387842996,1758917444033,-956.53863682,0.00032716,2]
[387842997,1758917444043,-481.122795,0.00032877,2]
[387842998,1758917444053,-169.62692056,0.00033,120]
[387842999,1758917444061,-500.0,0.00033012,7]
[387843000,1758917444071,-500.0,0.00033016,7]
[387843001,1758917444080,-316.472308,0.00033021,5]
[387843003,1758917444090,-193.217235,0.00033033,60]
[387843004,1758917444100,-500.0,0.00033177,7]
[387843006,1758917444109,-169.62692056,0.000333,120]
[387843007,1758917444118,-500.0,0.0003335,7]
[387843008,1758917444127,-171.24444284,0.00033646,7]
[387843009,1758917444137,-201.65443707,0.00033717,7]
[387843010,1758917444148,-298.34556293,0.00033717,7]
[387843011,1758917444158,-154.3,0.00033745,30]
[387843012,1758917444168,-500.0,0.00033841,7]
[387843013,1758917444176,-500.0,0.00033895,7]
[387843014,1758917444186,-1125.0795302,0.0003409,2]
[387843015,1758917444195,-5000.0,0.00034128,4]
[387843016,1758917444204,-153.0,0.00034212,30]
[387843017,1758917444214,-153.0,0.00034212,30]
[387843018,1758917444223,-153.0,0.00034212,30]
[387843019,1758917444234,-500.0,0.00034234,7]
[387843020,1758917444243,-500.0,0.00034313,7]
[387843021,1758917444252,-166.0,0.00034422,7]
[387843022,1758917444262,-823.0,0.00034601,2]
[387843023,1758917444382,-500.0,0.00034647,7]
[387843024,1758917444392,-3466.99907037,0.00034723,2]
[387843025,1758917444401,-500.0,0.00034723,7]
[387843026,1758917444411,-153.9638014,0.00034752,30]
[387843027,1758917444421,-153.0,0.0003476,30]
[387843028,1758917444431,-153.0,0.0003476,30]
[387843029,1758917444440,-271.177658,0.0003476,30]
[387843030,1758917444449,-500.0,0.00035128,30]
[387843031,1758917444458,-350.01042652,0.00035145,24]
[387843032,1758917444467,-500.0,0.0003541,30]
[387843033,1758917444477,-956.53863682,0.00035413,2]
[387843034,1758917444486,-999.0,0.00035616,120]
[387843035,1758917444495,-179.64071856,0.00035822,15]
[387843036,1758917444504,-1125.0795302,0.0003584,2]
[387843037,1758917444514,-154.3,0.0003585,30]
[387843038,1758917444525,-500.0,0.00035925,30]
[387843039,1758917444534,-500.0,0.00036053,30]
[387843040,1758917444543,-500.0,0.00036196,30]
[387843041,1758917444552,-500.0,0.00036661,30]
[387843042,1758917444562,-2711.94583532,0.0003684,2]
[387843043,1758917444571,-200.0,0.000369,120]
[387843044,1758917444580,-500.0,0.00036963,30]
[387843045,1758917444590,-1275.34544662,0.00037,120]
[387843046,1758917444599,-500.0,0.0003714,30]
[387843047,1758917444609,-500.0,0.00037186,30]
[387843048,1758917444618,-500.0,0.00037268,30]
[387843049,1758917444628,-153.0,0.00037314,30]
[387843050,1758917444637,-153.0,0.00037314,30]
[387843051,1758917444647,-153.0,0.00037314,30]
[387843052,1758917444656,-153.0,0.00037314,30]
[387843053,1758917444665,-153.0,0.00037314,30]
[387843054,1758917444675,-500.0,0.0003732,30]
[387843055,1758917444685,-79.31768072,0.0003759,2]
[387843056,1758917444696,-1045.76184948,0.0003759,2]
[387843057,1758917444705,-575.16851058,0.0003759,3]
[387843058,1758917444715,-651.0,0.000376,2]
[387843059,1758917444725,-500.0,0.00037743,30]
[387843060,1758917444734,-165.84,0.000378,2]
[387843061,1758917444743,-154.3,0.00037955,30]
[387843062,1758917444753,-500.0,0.00037973,5]
[387843063,1758917444762,-575.16851058,0.0003798,3]
[387843064,1758917444771,-13308.56336871,0.0003799,2]
[387843078,1758917446536,-999.0,0.00036438,120]
[387843079,1758917446545,-999.0,0.0003726,120]
[387843080,1758917446555,-800.0,0.00037845,7]
[387843081,1758917446564,-25820.24902711,0.0003799,2]
[387843082,1758917446588,-11438.95545429,0.0003799,2]
[387843083,1758917446598,-1725.50553174,0.0003799,3]
[387843084,1758917446607,-500.0,0.00037995,30]
[387843086,1758917446616,-96656.5955491,0.00038,7]
[387843113,1758917607017,341.53208762,0.000199,2]
[387843114,1758917607323,341.53208762,0.00022949,2]
[387843129,1758917722264,300.0,0.000229,2]
[387843131,1758917766798,5000.0,0.00025205,2]
[387843132,1758917776949,210.00625592,0.000199,2]
[387843133,1758917777013,210.00625592,0.00022949,2]
[387843134,1758917782560,5000.0,0.00025205,2]
[387843135,1758917790443,5000.0,0.00025205,2]
[387843136,1758917807060,-5000.0,0.00025205,2]
[387843137,1758917813511,0.01,0.00025205,2]
[387843138,1758917813533,4999.99,0.00025205,2]
[387843139,1758917829834,5000.0,0.00025205,2]
[387843140,1758917837872,5000.0,0.00025205,2]
[387843141,1758917840742,300.0,0.000252,2]
[387843142,1758917853682,5000.0,0.00025205,2]
[387843143,1758917861478,5000.0,0.00025205,2]
[387843144,1758917876783,5000.0,0.00025205,2]
[387843145,1758917884595,999.99,0.00025205,2]
[387843146,1758917896363,300.0,0.000252,2]
[387843147,1758917899818,5000.0,0.00025205,2]
[387843148,1758917907622,1058.29742011,0.00025205,2]
[387843149,1758917920218,244.55635377,0.00024932,15]
[387843150,1758917923365,2453.55297869,0.00025205,2]
[387843151,1758917946072,396.8062,0.000199,2]
[387843152,1758917946792,396.8062,0.00022949,2]
[387843153,1758917956620,300.0,0.000252,2]
[387843154,1758918042414,153.0,8.8e-07,2]
[387843162,1758918115729,364.0108436,0.000199,2]
[387843164,1758918233255,157.0,0.0002274,8]
[387843165,1758918285315,343.89870666,0.000199,2]
[387843166,1758918285957,343.89870666,0.00022949,2]
[387843167,1758918294264,417.15472785,0.00025205,2]
[387843180,1758918454945,315.47606444,0.000199,2]
[387843181,1758918468423,10000.01,0.00018,2]
[387843182,1758918468447,6081.28730438,0.00018,2]
[387843183,1758918472542,6790.34826353,0.00018,2]
[387843187,1758918495435,6244.64414733,0.00018,2]
[387843188,1758918496539,300.0,0.00018,2]
[387843190,1758918507447,300.0,0.00018,2]
[387843191,1758918514351,9311.22686354,0.00015,2]
[387843192,1758918515442,688.78313646,0.00024,2]
[387843194,1758918517054,-1021.98294668,0.00024,2]
[387843195,1758918517150,4234.80007596,0.00018,2]
[387843197,1758918519562,59420.43995405,0.00028767,120]
[387843198,1758918520554,163.31232933,0.00024,2]
[387843199,1758918520924,-663.81953528,0.000245,2]
[387843201,1758918522720,842.44879165,0.000215,2]
[387843202,1758918522969,458.70555099,0.00024,2]
[387843203,1758918523051,1000.0,0.000235,2]
[387843204,1758918524675,260.11277851,0.00015,2]
[387843205,1758918546196,165.0,0.0002274,8]
[387843206,1758918556110,194.9514069,0.00015,2]
[387843207,1758918596392,5000.0,0.00025205,2]
[387843208,1758918605979,160.0,0.00025205,2]
[387843209,1758918616939,300.0,0.00015,2]
[387843210,1758918624166,298.04554578,0.000199,2]
[387843211,1758918624382,298.04554578,0.00022949,2]
[387843212,1758918628530,300.0,0.00015,2]
[387843220,1758918632633,-759.398,0.00025416,2]
[387843221,1758918632730,-4240.602,0.00025416,2]
[387843222,1758918632740,-666.0,0.00025626,2]
[387843223,1758918632749,-5000.0,0.00025673,2]
[387843224,1758918632758,-475.1099327,0.00025932,2]
[387843225,1758918632767,-298.04554578,0.00025998,4]
[387843226,1758918632776,-1233.501991,0.00026194,2]
[387843227,1758918632785,-634.0,0.00026574,2]
[387843228,1758918632795,-300.0,0.00027013,2]
[387843229,1758918632804,-10000.01,0.00027248,2]
[387843231,1758918632813,-500.0,0.00027248,2]
[387843233,1758918632822,-500.0,0.00027248,2]
[387843234,1758918632832,-398.66609697,0.00027248,2]
[387843235,1758918632841,-500.0,0.00027248,2]
[387843236,1758918632850,-500.0,0.00027248,2]
[387843237,1758918632859,-500.0,0.00027248,2]
[387843238,1758918632869,-323.02537872,0.00027248,2]
[387843240,1758918632878,-500.0,0.00027248,2]
[387843242,1758918632887,-500.0,0.00027248,2]
[387843244,1758918632899,-500.0,0.00027248,2]
[387843245,1758918632908,-500.0,0.00027248,2]
[387843247,1758918632917,-172.3519245,0.00027248,2]
[387843249,1758918632927,-500.0,0.00027248,2]
[387843251,1758918632936,-500.0,0.00027248,2]
[387843253,1758918632945,-500.0,0.00027248,2]
[387843255,1758918632955,-500.0,0.00027248,2]
[387843257,1758918632964,-500.0,0.00027248,2]
[387843259,1758918632974,-500.0,0.00027248,2]
[387843261,1758918632984,-500.0,0.00027248,2]
[387843263,1758918632994,-500.0,0.00027248,2]
[387843265,1758918633003,-500.0,0.00027248,2]
[387843267,1758918633012,-500.0,0.00027248,2]
[387843269,1758918633022,-500.0,0.00027248,2]
[387843270,1758918633031,-576.86461428,0.00027248,2]
[387843271,1758918633040,-460.03297136,0.00027248,2]
[387843272,1758918633049,-500.0,0.00027248,2]
[387843273,1758918633059,-86.798753,0.00027248,2]
[387843274,1758918633071,-413.201247,0.00027248,2]
[387843275,1758918633081,-227.59087353,0.00027248,2]
[387843288,1758918633208,-272.40912647,0.00027248,2]
[387843290,1758918633218,-35.05928687,0.00027248,2]
[387843292,1758918633230,-456.47960642,0.00027248,2]
[387843393,1758918638598,-8.46110671,0.00027248,2]
[387843394,1758918638608,-500.0,0.00027248,2]
[387843395,1758918638619,-296.78617496,0.00027248,2]
[387843396,1758918638630,-500.0,0.00027248,2]
[387843397,1758918638640,-903.0,0.00027248,2]
[387843398,1758918638649,-17124.1766285,0.0002725,2]
[387843399,1758918638659,-160.0,0.00027302,2]
[387843400,1758918638669,-500.0,0.0002735,2]
[387843401,1758918638679,-197.925725,0.0002739,2]
[387843402,1758918638688,-150.0,0.0002739,2]
[387843403,1758918638699,-394.58552777,0.00027898,5]
[387843404,1758918638709,-233.71402077,0.00028321,2]
[387843405,1758918638719,-160.0,0.00028321,2]
[387843406,1758918638730,-298.04554578,0.00029047,11]
[387843407,1758918638740,-340.266,0.00029047,21]
[387843408,1758918638749,-420.0,0.00029204,2]
[387843409,1758918638759,-209.347008,0.00029253,60]
[387843410,1758918638768,-160.0,0.00029288,2]
[387843411,1758918638777,-1000.0,0.00029386,30]
[387843412,1758918638786,-300.0,0.00029835,2]
[387843413,1758918638796,-191.69625,0.0003,2]
[387843414,1758918638805,-480.0,0.00030136,120]
[387843415,1758918638815,-587.0,0.00031572,2]
[387843416,1758918638824,-320.0,0.00032026,20]
[387843417,1758918638833,-374.16005281,0.00032026,2]
[387843418,1758918638843,-21533.3844862,0.00032026,2]
[387843419,1758918638853,-1227.05867429,0.00032028,4]
[387843420,1758918638863,-298.04554578,0.00032096,17]
[387843421,1758918638873,-156.87167824,0.00032265,2]
[387843422,1758918638882,-491.330971,0.00032877,2]
[387843423,1758918638892,-500.0,0.00032877,60]